[Event "Titled Tuesday Blitz April 4 Late 2023"]
[White "Chigaev, Maksim"]
[Black "Mahdavi, Reza"]
[WhiteFideId "4108116"]
[BlackFideId "12595926"]
[WhiteElo "2547"]
[BlackElo "2357"]
[Result "1-0"]
[Round "05"]
[TimeControl "180+2"]
[Date "2023.04.04"]
[WhiteClock "0:02:33"]
[BlackClock "0:02:07"]

1. Nf3 {[%clk 0:03:00]}  Nf6 {[%clk 0:02:58]} 2. c4 {[%clk 0:03:01]}  g6 {[%clk 0:02:59]} 3. Nc3 {[%clk 0:03:02]}  Bg7 {[%clk 0:02:59]} 4. e4 {[%clk 0:03:02]}  d6 {[%clk 0:03:00]} 5. d4 {[%clk 0:03:03]}  O-O {[%clk 0:03:01]} 6. Be2 {[%clk 0:03:04]}  e5 {[%clk 0:03:02]} 7. O-O {[%clk 0:03:04]}  exd4 {[%clk 0:03:03]} 8. Nxd4 {[%clk 0:03:04]}  Re8 {[%clk 0:03:03]} 9. f3 {[%clk 0:03:05]}  c6 {[%clk 0:03:04]} 10. Bg5 {[%clk 0:03:06]}  Qb6 {[%clk 0:02:53]} 11. Kh1 {[%clk 0:03:05]}  d5 {[%clk 0:02:51]} 12. cxd5 {[%clk 0:03:03]}  Nxd5 {[%clk 0:02:50]} 13. Nxd5 {[%clk 0:03:03]}  cxd5 {[%clk 0:02:47]} 14. Nb5 {[%clk 0:03:04]}  Nc6 {[%clk 0:02:47]} 15. exd5 {[%clk 0:03:02]}  Nd4 {[%clk 0:02:46]} 16. Nxd4 {[%clk 0:03:02]}  Bxd4 {[%clk 0:02:27]} 17. Bc4 {[%clk 0:03:01]}  Bd7 {[%clk 0:02:22]} 18. b3 {[%clk 0:02:43]}  Bxa1 {[%clk 0:02:10]} 19. Qxa1 {[%clk 0:02:42]}  Bb5 {[%clk 0:02:09]} 20. Bh6 {[%clk 0:02:33]}  f6 {[%clk 0:02:07]} 21. d6+ {[%clk 0:02:34]}  Bxc4 {[%clk 0:02:07]} 22. Qxf6 {[%clk 0:02:33]} 1-0


[Site "https://www.chess.com"]

[Event "Titled Tuesday Blitz April 4 Late 2023"]
[White "Makhnev, Denis"]
[Black "Leitao, Rafael"]
[WhiteFideId "13707647"]
[BlackFideId "2101246"]
[WhiteElo "2515"]
[BlackElo "2609"]
[Result "1-0"]
[Round "05"]
[TimeControl "180+2"]
[Date "2023.04.04"]
[WhiteClock "0:00:03"]
[BlackClock "0:00:17"]

1. d4 {[%clk 0:03:00]}  Nf6 {[%clk 0:02:58]} 2. c4 {[%clk 0:03:00]}  g6 {[%clk 0:02:58]} 3. g3 {[%clk 0:03:00]}  Bg7 {[%clk 0:02:58]} 4. Bg2 {[%clk 0:03:01]}  d6 {[%clk 0:02:58]} 5. Nc3 {[%clk 0:03:01]}  O-O {[%clk 0:02:59]} 6. Nf3 {[%clk 0:03:02]}  c5 {[%clk 0:02:59]} 7. d5 {[%clk 0:03:02]}  e6 {[%clk 0:02:55]} 8. O-O {[%clk 0:03:02]}  exd5 {[%clk 0:02:56]} 9. cxd5 {[%clk 0:03:03]}  Na6 {[%clk 0:02:47]} 10. Bf4 {[%clk 0:02:57]}  Nc7 {[%clk 0:02:37]} 11. a4 {[%clk 0:02:55]}  a6 {[%clk 0:02:37]} 12. h3 {[%clk 0:02:48]}  Re8 {[%clk 0:02:35]} 13. Re1 {[%clk 0:02:47]}  h6 {[%clk 0:02:15]} 14. e4 {[%clk 0:02:41]}  g5 {[%clk 0:01:51]} 15. Bd2 {[%clk 0:02:38]}  Nd7 {[%clk 0:01:50]} 16. h4 {[%clk 0:02:07]}  g4 {[%clk 0:01:48]} 17. Nh2 {[%clk 0:02:07]}  Ne5 {[%clk 0:01:48]} 18. Bf4 {[%clk 0:02:05]}  h5 {[%clk 0:01:44]} 19. Nf1 {[%clk 0:01:46]}  Qf6 {[%clk 0:01:40]} 20. Ne3 {[%clk 0:01:40]}  Qg6 {[%clk 0:01:32]} 21. Qc2 {[%clk 0:01:27]}  Bd7 {[%clk 0:01:11]} 22. Nf5 {[%clk 0:00:58]}  Bh8 {[%clk 0:01:11]} 23. Nd1 {[%clk 0:00:41]}  b5 {[%clk 0:00:59]} 24. Nde3 {[%clk 0:00:40]}  bxa4 {[%clk 0:00:58]} 25. Nc4 {[%clk 0:00:35]}  Nxc4 {[%clk 0:00:56]} 26. Qxc4 {[%clk 0:00:35]}  Nb5 {[%clk 0:00:53]} 27. Qxa4 {[%clk 0:00:28]}  Bxb2 {[%clk 0:00:43]} 28. Nxd6 {[%clk 0:00:28]}  Bxa1 {[%clk 0:00:38]} 29. Rxa1 {[%clk 0:00:23]}  Nxd6 {[%clk 0:00:31]} 30. Qxd7 {[%clk 0:00:22]}  Nxe4 {[%clk 0:00:32]} 31. Qb7 {[%clk 0:00:08]}  Rab8 {[%clk 0:00:29]} 32. Bxb8 {[%clk 0:00:08]}  Qf6 {[%clk 0:00:28]} 33. Rf1 {[%clk 0:00:07]}  Nd2 {[%clk 0:00:29]} 34. Bf4 {[%clk 0:00:04]}  Nxf1 {[%clk 0:00:29]} 35. Bxf1 {[%clk 0:00:05]}  c4 {[%clk 0:00:29]} 36. d6 {[%clk 0:00:04]}  c3 {[%clk 0:00:28]} 37. d7 {[%clk 0:00:04]}  Rd8 {[%clk 0:00:28]} 38. Bxa6 {[%clk 0:00:04]}  c2 {[%clk 0:00:27]} 39. Qc7 {[%clk 0:00:03]}  Qxf4 {[%clk 0:00:18]} 40. Qxd8+ {[%clk 0:00:02]}  Kg7 {[%clk 0:00:18]} 41. gxf4 {[%clk 0:00:03]}  c1=Q+ {[%clk 0:00:18]} 42. Kh2 {[%clk 0:00:03]}  Qf1 {[%clk 0:00:17]} 43. Qg5+ {[%clk 0:00:03]} 1-0


[Site "https://www.chess.com"]

[Event "Titled Tuesday Blitz April 4 Late 2023"]
[White "Schmakel, Sam"]
[Black "Vakhlamov, Igor L."]
[WhiteFideId "2039311"]
[BlackFideId "24126748"]
[WhiteElo "2356"]
[BlackElo "2400"]
[Result "0-1"]
[Round "05"]
[TimeControl "180+2"]
[Date "2023.04.04"]
[WhiteClock "0:00:02"]
[BlackClock "0:00:12"]

1. Nf3 {[%clk 0:02:59]}  d5 {[%clk 0:02:55]} 2. g3 {[%clk 0:02:59]}  Nf6 {[%clk 0:02:55]} 3. Bg2 {[%clk 0:02:59]}  e6 {[%clk 0:02:55]} 4. O-O {[%clk 0:02:59]}  c5 {[%clk 0:02:54]} 5. c4 {[%clk 0:02:56]}  Nc6 {[%clk 0:02:55]} 6. d4 {[%clk 0:02:54]}  Be7 {[%clk 0:02:54]} 7. dxc5 {[%clk 0:02:39]}  Bxc5 {[%clk 0:02:55]} 8. cxd5 {[%clk 0:02:39]}  exd5 {[%clk 0:02:55]} 9. a3 {[%clk 0:02:34]}  Ne4 {[%clk 0:02:47]} 10. b4 {[%clk 0:02:18]}  Bb6 {[%clk 0:02:47]} 11. Bb2 {[%clk 0:02:16]}  O-O {[%clk 0:02:46]} 12. Nc3 {[%clk 0:02:07]}  Nxc3 {[%clk 0:02:27]} 13. Bxc3 {[%clk 0:02:08]}  d4 {[%clk 0:02:28]} 14. Bb2 {[%clk 0:02:08]}  a6 {[%clk 0:02:24]} 15. Rc1 {[%clk 0:02:03]}  Re8 {[%clk 0:02:23]} 16. Qd3 {[%clk 0:01:55]}  Bg4 {[%clk 0:02:14]} 17. Rfd1 {[%clk 0:01:53]}  Qd7 {[%clk 0:02:07]} 18. Bxd4 {[%clk 0:01:22]}  Nxd4 {[%clk 0:01:25]} 19. Nxd4 {[%clk 0:01:23]}  Rad8 {[%clk 0:00:45]} 20. h3 {[%clk 0:00:29]}  Bxe2 {[%clk 0:00:35]} 21. Nxe2 {[%clk 0:00:11]}  Qxd3 {[%clk 0:00:36]} 22. Rxd3 {[%clk 0:00:12]}  Rxd3 {[%clk 0:00:37]} 23. Nf4 {[%clk 0:00:09]}  Rxa3 {[%clk 0:00:27]} 24. Nd5 {[%clk 0:00:06]}  Ba7 {[%clk 0:00:27]} 25. Rc7 {[%clk 0:00:04]}  Ra1+ {[%clk 0:00:20]} 26. Kh2 {[%clk 0:00:05]}  Bxf2 {[%clk 0:00:20]} 27. h4 {[%clk 0:00:05]}  h5 {[%clk 0:00:18]} 28. Rxb7 {[%clk 0:00:05]}  Re2 {[%clk 0:00:16]} 29. Nc3 {[%clk 0:00:04]}  Re3 {[%clk 0:00:15]} 30. Ne4 {[%clk 0:00:04]}  Bg1+ {[%clk 0:00:14]} 31. Kh3 {[%clk 0:00:04]}  Raa3 {[%clk 0:00:14]} 32. Rb8+ {[%clk 0:00:02]}  Kh7 {[%clk 0:00:14]} 33. Ng5+ {[%clk 0:00:03]}  Kg6 {[%clk 0:00:15]} 34. Be4+ {[%clk 0:00:02]}  Kf6 {[%clk 0:00:11]} 35. Rb6+ {[%clk 0:00:02]}  Ke5 {[%clk 0:00:12]} 0-1


[Site "https://www.chess.com"]

[Event "Titled Tuesday Blitz April 4 Late 2023"]
[White "tuschessCM1"]
[Black "Andreikin, Dmitry"]
[BlackFideId "4158814"]
[WhiteElo "2740"]
[BlackElo "2736"]
[Result "0-1"]
[Round "05"]
[TimeControl "180+2"]
[Date "2023.04.04"]
[WhiteClock "0:01:26"]
[BlackClock "0:02:43"]

1. c4 {[%clk 0:03:00]}  e6 {[%clk 0:02:59]} 2. Nf3 {[%clk 0:02:58]}  d5 {[%clk 0:02:59]} 3. e3 {[%clk 0:02:59]}  Nf6 {[%clk 0:02:58]} 4. b3 {[%clk 0:02:57]}  c5 {[%clk 0:02:57]} 5. Bb2 {[%clk 0:02:54]}  Nc6 {[%clk 0:02:58]} 6. cxd5 {[%clk 0:02:55]}  exd5 {[%clk 0:02:58]} 7. d4 {[%clk 0:02:54]}  cxd4 {[%clk 0:02:56]} 8. Nxd4 {[%clk 0:02:53]}  Bb4+ {[%clk 0:02:57]} 9. Nc3 {[%clk 0:02:40]}  Ne4 {[%clk 0:02:56]} 10. Ne2 {[%clk 0:02:29]}  Qf6 {[%clk 0:02:53]} 11. Qc2 {[%clk 0:02:23]}  Qxf2+ {[%clk 0:02:51]} 12. Kd1 {[%clk 0:02:22]}  Bf5 {[%clk 0:02:50]} 13. Qc1 {[%clk 0:01:55]}  Rd8 {[%clk 0:02:49]} 14. a3 {[%clk 0:01:39]}  d4 {[%clk 0:02:44]} 15. Nxe4 {[%clk 0:01:27]}  Qe1+ {[%clk 0:02:42]} 16. Kc2 {[%clk 0:01:26]}  Bxe4# {[%clk 0:02:43]} 0-1


[Site "https://www.chess.com"]

[Event "Titled Tuesday Blitz April 4 Late 2023"]
[White "Bluebaum, Matthias"]
[Black "Bakalchuk, Johnatan"]
[WhiteFideId "24651516"]
[BlackFideId "2810301"]
[WhiteElo "2638"]
[BlackElo "2450"]
[Result "0-1"]
[Round "05"]
[TimeControl "180+2"]
[Date "2023.04.04"]
[WhiteClock "0:00:01"]
[BlackClock "0:00:12"]

1. d4 {[%clk 0:03:00]}  Nf6 {[%clk 0:02:59]} 2. c4 {[%clk 0:03:01]}  g6 {[%clk 0:02:59]} 3. Nc3 {[%clk 0:03:01]}  Bg7 {[%clk 0:03:00]} 4. e4 {[%clk 0:03:02]}  O-O {[%clk 0:03:00]} 5. Nf3 {[%clk 0:03:03]}  d6 {[%clk 0:03:00]} 6. Be2 {[%clk 0:03:03]}  Na6 {[%clk 0:03:01]} 7. O-O {[%clk 0:03:03]}  e5 {[%clk 0:03:02]} 8. Be3 {[%clk 0:03:04]}  c6 {[%clk 0:03:01]} 9. d5 {[%clk 0:03:03]}  Ng4 {[%clk 0:03:01]} 10. Bg5 {[%clk 0:03:04]}  f6 {[%clk 0:03:01]} 11. Bh4 {[%clk 0:03:04]}  c5 {[%clk 0:03:02]} 12. Ne1 {[%clk 0:03:05]}  Nh6 {[%clk 0:03:02]} 13. a3 {[%clk 0:03:03]}  Nf7 {[%clk 0:03:02]} 14. Nc2 {[%clk 0:03:03]}  Bh6 {[%clk 0:03:00]} 15. b4 {[%clk 0:03:02]}  Bg5 {[%clk 0:02:59]} 16. Bg3 {[%clk 0:03:02]}  f5 {[%clk 0:02:51]} 17. exf5 {[%clk 0:02:52]}  gxf5 {[%clk 0:02:47]} 18. f4 {[%clk 0:02:51]}  exf4 {[%clk 0:02:28]} 19. Bxf4 {[%clk 0:02:52]}  Bxf4 {[%clk 0:02:00]} 20. Rxf4 {[%clk 0:02:53]}  Qg5 {[%clk 0:02:00]} 21. Qd2 {[%clk 0:02:41]}  Bd7 {[%clk 0:02:01]} 22. Raf1 {[%clk 0:02:37]}  Rae8 {[%clk 0:01:57]} 23. h3 {[%clk 0:02:26]}  Kh8 {[%clk 0:01:48]} 24. bxc5 {[%clk 0:01:59]}  Nxc5 {[%clk 0:01:45]} 25. Qd4+ {[%clk 0:01:59]}  Ne5 {[%clk 0:01:44]} 26. Ne3 {[%clk 0:01:57]}  Rf6 {[%clk 0:01:23]} 27. Ng4 {[%clk 0:01:24]}  Rg6 {[%clk 0:01:18]} 28. h4 {[%clk 0:01:17]}  Qe7 {[%clk 0:01:10]} 29. Ne3 {[%clk 0:01:05]}  Reg8 {[%clk 0:00:44]} 30. R1f2 {[%clk 0:01:04]}  Qg7 {[%clk 0:00:37]} 31. h5 {[%clk 0:00:47]}  Rg3 {[%clk 0:00:37]} 32. h6 {[%clk 0:00:36]}  Qxh6 {[%clk 0:00:37]} 33. Nxf5 {[%clk 0:00:36]}  Bxf5 {[%clk 0:00:37]} 34. Rxf5 {[%clk 0:00:37]}  Rh3 {[%clk 0:00:37]} 35. Rf1 {[%clk 0:00:18]}  Qg7 {[%clk 0:00:25]} 36. Qf2 {[%clk 0:00:06]}  Rxc3 {[%clk 0:00:21]} 37. Rh5 {[%clk 0:00:04]}  Rg3 {[%clk 0:00:18]} 38. Rh2 {[%clk 0:00:02]}  Ne4 {[%clk 0:00:18]} 39. Qf4 {[%clk 0:00:01]}  Rxg2+ {[%clk 0:00:13]} 40. Kh1 {[%clk 0:00:02]}  Rg1+ {[%clk 0:00:11]} 41. Rxg1 {[%clk 0:00:01]}  Qxg1# {[%clk 0:00:12]} 0-1


[Site "https://www.chess.com"]

[Event "Titled Tuesday Blitz April 4 Late 2023"]
[White "Kramnik, Vladimir"]
[Black "Adewumi, Tanitoluwa"]
[WhiteFideId "4101588"]
[BlackFideId "30966396"]
[WhiteElo "2712"]
[BlackElo "2720"]
[Result "1-0"]
[Round "05"]
[TimeControl "180+2"]
[Date "2023.04.04"]
[WhiteClock "0:00:59"]
[BlackClock "0:00:01"]

1. c4 {[%clk 0:03:00]}  e5 {[%clk 0:02:52]} 2. d3 {[%clk 0:02:59]}  Nc6 {[%clk 0:02:51]} 3. Nf3 {[%clk 0:02:58]}  g6 {[%clk 0:02:50]} 4. Nc3 {[%clk 0:02:57]}  d6 {[%clk 0:02:50]} 5. g3 {[%clk 0:02:57]}  Bg7 {[%clk 0:02:50]} 6. Bg2 {[%clk 0:02:57]}  Nge7 {[%clk 0:02:51]} 7. O-O {[%clk 0:02:57]}  O-O {[%clk 0:02:51]} 8. Rb1 {[%clk 0:02:57]}  a6 {[%clk 0:02:50]} 9. b4 {[%clk 0:02:56]}  h6 {[%clk 0:02:50]} 10. a4 {[%clk 0:02:54]}  f5 {[%clk 0:02:43]} 11. b5 {[%clk 0:02:50]}  axb5 {[%clk 0:02:38]} 12. axb5 {[%clk 0:02:49]}  Nb8 {[%clk 0:02:17]} 13. Bb2 {[%clk 0:02:46]}  c6 {[%clk 0:02:13]} 14. Ra1 {[%clk 0:02:44]}  Rxa1 {[%clk 0:02:03]} 15. Qxa1 {[%clk 0:02:43]}  d5 {[%clk 0:01:54]} 16. bxc6 {[%clk 0:02:40]}  bxc6 {[%clk 0:01:31]} 17. Qa7 {[%clk 0:02:38]}  Be6 {[%clk 0:00:47]} 18. Ba3 {[%clk 0:02:25]}  Nd7 {[%clk 0:00:38]} 19. cxd5 {[%clk 0:02:18]}  cxd5 {[%clk 0:00:36]} 20. Nb5 {[%clk 0:02:15]}  Bf6 {[%clk 0:00:28]} 21. Rc1 {[%clk 0:02:11]}  Qa8 {[%clk 0:00:20]} 22. Qxa8 {[%clk 0:01:42]}  Rxa8 {[%clk 0:00:21]} 23. Bd6 {[%clk 0:01:41]}  Kf7 {[%clk 0:00:19]} 24. d4 {[%clk 0:01:38]}  e4 {[%clk 0:00:17]} 25. Ne5+ {[%clk 0:01:38]}  Bxe5 {[%clk 0:00:16]} 26. dxe5 {[%clk 0:01:37]}  Rc8 {[%clk 0:00:09]} 27. Nc7 {[%clk 0:01:31]}  d4 {[%clk 0:00:03]} 28. Rd1 {[%clk 0:01:22]}  d3 {[%clk 0:00:01]} 29. exd3 {[%clk 0:01:20]}  Bb3 {[%clk 0:00:02]} 30. Rd2 {[%clk 0:01:08]}  Nd5 {[%clk 0:00:01]} 31. Rb2 {[%clk 0:00:59]} 1-0


[Site "https://www.chess.com"]

[Event "Titled Tuesday Blitz April 4 Late 2023"]
[White "Alekseenko, Kirill"]
[Black "Hansen, Sune Berg"]
[WhiteFideId "4135539"]
[BlackFideId "1400266"]
[WhiteElo "2683"]
[BlackElo "2716"]
[Result "1-0"]
[Round "05"]
[TimeControl "180+2"]
[Date "2023.04.04"]
[WhiteClock "0:01:09"]
[BlackClock "0:00:10"]

1. d4 {[%clk 0:03:00]}  Nf6 {[%clk 0:02:58]} 2. Nc3 {[%clk 0:03:00]}  d5 {[%clk 0:02:57]} 3. Bf4 {[%clk 0:02:57]}  a6 {[%clk 0:02:56]} 4. e3 {[%clk 0:02:57]}  e6 {[%clk 0:02:54]} 5. g4 {[%clk 0:02:57]}  c5 {[%clk 0:02:53]} 6. g5 {[%clk 0:02:58]}  Nfd7 {[%clk 0:02:53]} 7. h4 {[%clk 0:02:58]}  Nc6 {[%clk 0:02:51]} 8. Nf3 {[%clk 0:02:59]}  b5 {[%clk 0:02:51]} 9. Ne2 {[%clk 0:02:59]}  Bb7 {[%clk 0:02:49]} 10. Bg2 {[%clk 0:02:59]}  a5 {[%clk 0:02:42]} 11. c3 {[%clk 0:02:57]}  b4 {[%clk 0:02:39]} 12. h5 {[%clk 0:02:47]}  Qb6 {[%clk 0:02:25]} 13. Kf1 {[%clk 0:02:44]}  Be7 {[%clk 0:02:14]} 14. Kg1 {[%clk 0:02:42]}  h6 {[%clk 0:02:04]} 15. Ng3 {[%clk 0:02:40]}  a4 {[%clk 0:01:59]} 16. cxb4 {[%clk 0:02:20]}  cxb4 {[%clk 0:01:58]} 17. Rc1 {[%clk 0:02:16]}  a3 {[%clk 0:01:45]} 18. b3 {[%clk 0:02:15]}  Rc8 {[%clk 0:01:41]} 19. Rh4 {[%clk 0:02:04]}  Na7 {[%clk 0:01:28]} 20. Rg4 {[%clk 0:01:55]}  Rxc1 {[%clk 0:01:23]} 21. Qxc1 {[%clk 0:01:56]}  Qc6 {[%clk 0:01:22]} 22. Qb1 {[%clk 0:01:44]}  Nb5 {[%clk 0:01:12]} 23. gxh6 {[%clk 0:01:42]}  gxh6 {[%clk 0:01:09]} 24. Ne5 {[%clk 0:01:43]}  Nxe5 {[%clk 0:01:07]} 25. Bxe5 {[%clk 0:01:44]}  Nc3 {[%clk 0:01:03]} 26. Qc2 {[%clk 0:01:44]}  Ba6 {[%clk 0:01:03]} 27. Kh2 {[%clk 0:01:43]}  Rf8 {[%clk 0:00:34]} 28. Bg7 {[%clk 0:01:43]}  Qc7 {[%clk 0:00:17]} 29. Bxf8 {[%clk 0:01:37]}  Bxf8 {[%clk 0:00:16]} 30. Rg8 {[%clk 0:01:31]}  Ke7 {[%clk 0:00:14]} 31. f4 {[%clk 0:01:23]}  f5 {[%clk 0:00:13]} 32. Nxf5+ {[%clk 0:01:15]}  Kf7 {[%clk 0:00:10]} 33. Nxh6+ {[%clk 0:01:09]} 1-0


[Site "https://www.chess.com"]

[Event "Titled Tuesday Blitz April 4 Late 2023"]
[White "Iliaguev, Nisim"]
[Black "Zakhartsov, Vladimir"]
[WhiteFideId "2817276"]
[BlackFideId "4145097"]
[WhiteElo "2241"]
[BlackElo "2497"]
[Result "0-1"]
[Round "05"]
[TimeControl "180+2"]
[Date "2023.04.04"]
[WhiteClock "0:00:05"]
[BlackClock "0:00:11"]

1. d4 {[%clk 0:02:43]}  Nf6 {[%clk 0:02:59]} 2. Nf3 {[%clk 0:02:42]}  e6 {[%clk 0:02:56]} 3. g3 {[%clk 0:02:41]}  b5 {[%clk 0:02:55]} 4. Bg2 {[%clk 0:02:41]}  Bb7 {[%clk 0:02:55]} 5. O-O {[%clk 0:02:42]}  c5 {[%clk 0:02:55]} 6. a4 {[%clk 0:02:42]}  b4 {[%clk 0:02:55]} 7. c4 {[%clk 0:02:43]}  bxc3 {[%clk 0:02:52]} 8. Nxc3 {[%clk 0:02:43]}  cxd4 {[%clk 0:02:51]} 9. Qxd4 {[%clk 0:02:42]}  Nc6 {[%clk 0:02:50]} 10. Qd1 {[%clk 0:02:38]}  Be7 {[%clk 0:02:48]} 11. a5 {[%clk 0:02:39]}  Nxa5 {[%clk 0:02:43]} 12. Nb5 {[%clk 0:02:33]}  O-O {[%clk 0:02:39]} 13. Bf4 {[%clk 0:02:33]}  Nd5 {[%clk 0:02:25]} 14. Bd6 {[%clk 0:02:26]}  Nc4 {[%clk 0:01:55]} 15. Bxe7 {[%clk 0:02:18]}  Nxe7 {[%clk 0:01:54]} 16. b3 {[%clk 0:02:07]}  Na5 {[%clk 0:01:53]} 17. Nd6 {[%clk 0:02:03]}  Bd5 {[%clk 0:01:51]} 18. Nd4 {[%clk 0:02:03]}  Qb6 {[%clk 0:01:44]} 19. e4 {[%clk 0:01:39]}  Bc6 {[%clk 0:01:10]} 20. Qd3 {[%clk 0:01:13]}  Rab8 {[%clk 0:01:04]} 21. Nxc6 {[%clk 0:01:12]}  Nexc6 {[%clk 0:01:00]} 22. Rfb1 {[%clk 0:00:59]}  Nb4 {[%clk 0:00:45]} 23. Qd2 {[%clk 0:00:57]}  Nac6 {[%clk 0:00:44]} 24. Nc4 {[%clk 0:00:55]}  Qc7 {[%clk 0:00:41]} 25. h3 {[%clk 0:00:50]}  Rfd8 {[%clk 0:00:40]} 26. f4 {[%clk 0:00:48]}  d5 {[%clk 0:00:40]} 27. exd5 {[%clk 0:00:49]}  exd5 {[%clk 0:00:41]} 28. Ne3 {[%clk 0:00:45]}  d4 {[%clk 0:00:41]} 29. Nc4 {[%clk 0:00:44]}  d3 {[%clk 0:00:41]} 30. Ra4 {[%clk 0:00:41]}  Qe7 {[%clk 0:00:36]} 31. Kh2 {[%clk 0:00:34]}  Nd4 {[%clk 0:00:35]} 32. Re1 {[%clk 0:00:32]}  Qc5 {[%clk 0:00:31]} 33. Re5 {[%clk 0:00:32]}  Qf8 {[%clk 0:00:32]} 34. Re4 {[%clk 0:00:23]}  Nxb3 {[%clk 0:00:31]} 35. Qd1 {[%clk 0:00:21]}  Nc5 {[%clk 0:00:29]} 36. Ne5 {[%clk 0:00:17]}  Nxa4 {[%clk 0:00:26]} 37. Qxa4 {[%clk 0:00:17]}  d2 {[%clk 0:00:26]} 38. Bf3 {[%clk 0:00:15]}  d1=Q {[%clk 0:00:19]} 39. Bxd1 {[%clk 0:00:15]}  Rd2+ {[%clk 0:00:19]} 40. Re2 {[%clk 0:00:15]}  Rbd8 {[%clk 0:00:18]} 41. Rxd2 {[%clk 0:00:09]}  Rxd2+ {[%clk 0:00:18]} 42. Kh1 {[%clk 0:00:09]}  Qa8+ {[%clk 0:00:12]} 43. Bf3 {[%clk 0:00:09]}  Qb8 {[%clk 0:00:12]} 44. h4 {[%clk 0:00:05]}  Nd3 {[%clk 0:00:11]} 0-1


[Site "https://www.chess.com"]

[Event "Titled Tuesday Blitz April 4 Late 2023"]
[White "Barbosa, Evandro Amorim"]
[Black "Kravtsiv, Martyn"]
[WhiteFideId "2115824"]
[BlackFideId "14113147"]
[WhiteElo "2439"]
[BlackElo "2695"]
[Result "0-1"]
[Round "05"]
[TimeControl "180+2"]
[Date "2023.04.04"]
[WhiteClock "0:00:02"]
[BlackClock "0:00:10"]

1. e4 {[%clk 0:03:00]}  e5 {[%clk 0:02:55]} 2. Nf3 {[%clk 0:03:00]}  Nc6 {[%clk 0:02:55]} 3. Bb5 {[%clk 0:02:58]}  a6 {[%clk 0:02:54]} 4. Ba4 {[%clk 0:02:58]}  g6 {[%clk 0:02:55]} 5. c3 {[%clk 0:02:57]}  Bg7 {[%clk 0:02:54]} 6. d4 {[%clk 0:02:58]}  Nge7 {[%clk 0:02:53]} 7. d5 {[%clk 0:02:56]}  Na5 {[%clk 0:02:45]} 8. b4 {[%clk 0:02:44]}  Nc4 {[%clk 0:02:44]} 9. Bb3 {[%clk 0:02:44]}  Nd6 {[%clk 0:02:40]} 10. O-O {[%clk 0:02:32]}  O-O {[%clk 0:02:35]} 11. Re1 {[%clk 0:02:32]}  b5 {[%clk 0:02:34]} 12. Nbd2 {[%clk 0:02:28]}  a5 {[%clk 0:02:33]} 13. bxa5 {[%clk 0:02:24]}  Rxa5 {[%clk 0:02:32]} 14. a4 {[%clk 0:02:07]}  c5 {[%clk 0:02:03]} 15. Ba3 {[%clk 0:02:01]}  bxa4 {[%clk 0:01:57]} 16. Bxa4 {[%clk 0:01:57]}  Qc7 {[%clk 0:01:56]} 17. Bc2 {[%clk 0:01:49]}  Nb5 {[%clk 0:01:40]} 18. Bb2 {[%clk 0:01:46]}  d6 {[%clk 0:01:35]} 19. Nc4 {[%clk 0:01:43]}  Rxa1 {[%clk 0:01:33]} 20. Qxa1 {[%clk 0:01:43]}  Bd7 {[%clk 0:01:30]} 21. Qa6 {[%clk 0:01:39]}  Rb8 {[%clk 0:01:24]} 22. Ra1 {[%clk 0:01:36]}  h6 {[%clk 0:01:12]} 23. Ba4 {[%clk 0:01:32]}  Bc8 {[%clk 0:01:10]} 24. Qa5 {[%clk 0:01:24]}  Qxa5 {[%clk 0:01:09]} 25. Nxa5 {[%clk 0:01:24]}  f5 {[%clk 0:01:07]} 26. Nd2 {[%clk 0:01:18]}  fxe4 {[%clk 0:01:02]} 27. Nxe4 {[%clk 0:01:19]}  Bf5 {[%clk 0:00:55]} 28. c4 {[%clk 0:01:15]}  Bxe4 {[%clk 0:00:53]} 29. Bxb5 {[%clk 0:01:09]}  Bxd5 {[%clk 0:00:40]} 30. Rd1 {[%clk 0:01:09]}  Rb6 {[%clk 0:00:31]} 31. Bc3 {[%clk 0:01:01]}  Be6 {[%clk 0:00:29]} 32. g3 {[%clk 0:00:47]}  Kf7 {[%clk 0:00:27]} 33. h4 {[%clk 0:00:46]}  h5 {[%clk 0:00:26]} 34. Kf1 {[%clk 0:00:45]}  Nf5 {[%clk 0:00:26]} 35. Nc6 {[%clk 0:00:40]}  Nd4 {[%clk 0:00:26]} 36. Bxd4 {[%clk 0:00:40]}  cxd4 {[%clk 0:00:22]} 37. Ra1 {[%clk 0:00:32]}  Bf6 {[%clk 0:00:20]} 38. Ra7+ {[%clk 0:00:30]}  Kf8 {[%clk 0:00:20]} 39. Rc7 {[%clk 0:00:18]}  d5 {[%clk 0:00:18]} 40. Na5 {[%clk 0:00:05]}  dxc4 {[%clk 0:00:12]} 41. Bxc4 {[%clk 0:00:06]}  Bd8 {[%clk 0:00:12]} 42. Ra7 {[%clk 0:00:04]}  Bh3+ {[%clk 0:00:11]} 43. Ke2 {[%clk 0:00:04]}  Rb2+ {[%clk 0:00:10]} 44. Kf3 {[%clk 0:00:02]}  Bf5 {[%clk 0:00:10]} 0-1


[Site "https://www.chess.com"]